bitfinex/quotes_SOLUSD_20251031
["timestamp","ask_amount","ask_price","bid_price","bid_amount"]
[1761931379387,0.28432314,184.89,184.83,0.71]
[1761931379590,8.4958522,184.86,184.84,5.41008439]
[1761931380188,8.4958522,184.86,184.84,6.12008439]
[1761931380398,8.4958522,184.86,184.84,5.41008439]
[1761931380592,8.4958522,184.88,184.85,0.71]
[1761931380878,8.4958522,184.87,184.84,5.41008439]
[1761931381082,21.28632314,184.92,184.8,27.05547792]
[1761931381083,8.4958522,184.85,184.8,0.71]
[1761931381301,8.4958522,184.83,184.8,0.71]
[1761931381517,8.4958522,184.81,184.8,0.71]
[1761931381686,8.4958522,184.81,184.8,6.12125541]
[1761931381889,8.4958522,184.81,184.75,0.1]
[1761931381890,8.4958522,184.81,184.78,5.41160902]
[1761931382088,8.4958522,184.84,184.8,0.71]
[1761931382278,8.4958522,184.85,184.8,9.2058522]
[1761931382588,8.4958522,184.87,184.81,0.71]
[1761931382788,8.4958522,184.86,184.81,9.2058522]
[1761931382994,8.4958522,184.87,184.82,0.71]
[1761931383210,20.592,184.88,184.82,0.71]
[1761931383382,13.92576872,184.97,184.86,8.4958522]
[1761931383582,8.66251185,185.01,184.82,0.71]
[1761931383583,8.96240659,185.0,184.9,8.4958522]
[1761931383810,8.4958522,184.96,184.88,18.93119861]
[1761931383988,8.4958522,184.96,184.9,8.4958522]
[1761931384188,8.4958522,184.97,184.91,8.4958522]
[1761931384396,8.4958522,184.94,184.89,0.71]
[1761931384605,8.4958522,184.91,184.86,6.11945662]
[1761931384815,8.4958522,184.9,184.86,6.11945662]
[1761931385021,8.4958522,184.9,184.86,5.40945662]
[1761931385199,20.592,184.93,184.87,0.71]
[1761931385501,8.4958522,184.92,184.87,0.71]
[1761931385687,8.4958522,184.92,184.88,5.40891389]
[1761931386084,8.4958522,184.91,184.88,6.11891389]
[1761931386587,8.4958522,184.91,184.87,5.40912749]
[1761931386778,20.592,184.93,184.87,5.40912749]
[1761931386982,8.4958522,184.91,184.86,5.40945002]
[1761931387206,21.002,184.93,184.87,0.71]
[1761931387408,8.4958522,184.91,184.87,0.71]
[1761931387712,8.4958522,184.91,184.86,5.40945002]
[1761931387963,8.4958522,184.87,184.82,0.71]
[1761931388482,8.4958522,184.89,184.82,9.2058522]
[1761931388715,8.4958522,184.9,184.83,8.4958522]
[1761931388886,8.4958522,184.9,184.83,9.2058522]
[1761931389087,8.4958522,184.9,184.83,8.4958522]
[1761931389409,8.4958522,184.9,184.84,0.71]
[1761931389611,8.4958522,184.89,184.84,0.71]
[1761931389805,39.16100303,184.92,184.85,13.90564392]
[1761931390105,29.37217534,184.92,184.85,13.90564392]
[1761931390289,29.37217534,184.92,184.85,14.61564392]
[1761931390787,9.78882769,184.95,184.87,8.4958522]
[1761931391105,8.4958522,184.9,184.84,13.90586216]
[1761931391307,8.4958522,184.89,184.84,5.41000996]
[1761931391612,8.4958522,184.88,184.83,0.71]
[1761931391830,8.4958522,184.88,184.82,8.4958522]
[1761931391831,8.4958522,184.87,184.81,5.41096261]
[1761931392025,8.4958522,184.87,184.81,6.12096261]
[1761931392202,8.4958522,184.87,184.82,0.71]
[1761931392708,5.40870781,184.89,184.82,9.2058522]
[1761931392709,9.78882769,184.89,184.82,9.2058522]
[1761931392914,8.78017534,184.92,184.85,8.4958522]
[1761931393117,8.4958522,184.91,184.85,0.71]
[1761931393308,8.4958522,184.9,184.85,0.71]
[1761931393614,8.4958522,184.9,184.82,9.2058522]
[1761931393615,0.28432314,184.9,184.82,9.2058522]
[1761931393805,8.4958522,184.89,184.84,5.41008439]
[1761931394325,8.4958522,184.88,184.83,5.41032458]
[1761931394625,8.4958522,184.89,184.84,0.71]
[1761931394826,8.4958522,184.91,184.84,9.2058522]
[1761931395123,8.4958522,184.89,184.84,0.71]
[1761931395833,8.4958522,184.9,184.84,0.71]
[1761931396126,8.4958522,184.89,184.84,6.11992341]
[1761931396532,8.4958522,184.9,184.85,0.71]
[1761931397218,26.00008987,184.91,184.85,0.71]
[1761931397422,8.4958522,184.88,184.82,0.71]
[1761931397624,8.4958522,184.86,184.79,0.71]
[1761931397949,8.4958522,184.87,184.81,5.41096261]
[1761931398135,8.4958522,184.87,184.81,13.90681481]
[1761931398332,8.78017534,184.9,184.83,8.4958522]
[1761931398538,20.592,184.9,184.83,8.4958522]
[1761931398837,20.592,184.91,184.86,8.4958522]
[1761931399037,29.4978522,184.91,184.83,0.71]
[1761931399209,21.002,184.91,184.84,8.4958522]
[1761931399549,4.34887278,185.0,184.84,30.38082769]
[1761931399732,5.59112598,184.99,184.92,5.59112598]
[1761931399904,4.34887278,185.03,184.94,5.40715907]
[1761931399905,5.59112598,185.0,184.94,5.40715907]
[1761931400103,5.59112598,184.99,184.88,20.592]
[1761931400441,5.59112598,184.99,184.87,11.00022167]
[1761931400442,5.59112598,184.94,184.87,11.00022167]
[1761931400728,5.59112598,184.94,184.88,5.59112598]
[1761931401030,5.59112598,184.94,184.88,6.30112598]
[1761931401206,5.59112598,184.95,184.89,0.71]
[1761931401408,26.18312598,184.96,184.89,6.30112598]
[1761931401608,5.59112598,184.94,184.89,6.11838474]
[1761931401810,5.59112598,184.94,184.85,0.71]
[1761931401811,5.59112598,184.91,184.85,0.71]
[1761931402019,0.28432314,184.94,184.86,4.05195336]
[1761931402020,0.69432314,184.94,184.86,4.05195336]
[1761931402308,0.69432314,184.94,184.87,0.72]
[1761931402309,5.59112598,184.92,184.87,0.72]
[1761931402615,5.59112598,184.91,184.87,0.72]
[1761931402811,5.59112598,184.9,184.87,0.72]
[1761931403012,5.59112598,184.9,184.87,6.12897559]
[1761931403520,5.59112598,184.92,184.88,0.72]
[1761931403920,5.59112598,184.89,184.81,61.8]
[1761931404234,21.002,184.92,184.84,0.72]
[1761931404235,5.59112598,184.87,184.84,0.72]
[1761931404822,5.59112598,184.85,184.82,5.41066984]
[1761931405036,5.59112598,184.86,184.83,0.72]
[1761931405222,5.59112598,184.89,184.83,6.31112598]
[1761931405542,5.59112598,184.89,184.84,5.59112598]
[1761931405840,5.59112598,184.88,184.85,0.69]
[1761931406430,5.59112598,184.86,184.82,5.41066984]
[1761931406758,5.59112598,184.84,184.82,5.41066984]
[1761931406921,20.87632314,184.9,184.8,24.53051991]
[1761931406922,5.59112598,184.85,184.8,24.53051991]
[1761931407122,5.59112598,184.85,184.82,0.69]
[1761931407446,5.59112598,184.86,184.82,0.69]
[1761931407649,0.28432314,184.88,184.82,0.69]
[1761931407969,20.592,184.88,184.82,6.28112598]
[1761931408122,20.592,184.88,184.84,5.59112598]
[1761931408619,20.592,184.88,184.85,0.69]
[1761931409055,5.59112598,184.87,184.82,5.59112598]
[1761931409228,5.59112598,184.87,184.83,0.69]
[1761931409423,5.59112598,184.86,184.83,0.69]
[1761931409630,5.59112598,184.87,184.83,6.1003771]
[1761931410038,5.59112598,184.88,184.83,11.69150308]
[1761931410230,5.59112598,184.9,184.84,6.28112598]
[1761931410446,1.50416648,184.99,184.89,5.59112598]
[1761931410657,5.59112598,184.97,184.92,5.59112598]
[1761931410830,4.68026809,185.01,184.92,5.59112598]
[1761931411025,4.68026809,185.01,184.86,20.592]
[1761931411026,5.59112598,185.01,184.95,5.59112598]
[1761931411231,0.41,185.05,184.97,5.59112598]
[1761931411452,5.59112598,185.05,185.0,5.59112598]
[1761931411965,5.59112598,185.02,184.98,0.69]
[1761931412252,0.2,185.06,185.0,6.28112598]
[1761931412455,5.59112598,185.05,185.01,0.69]
[1761931412676,5.79112598,185.06,185.01,0.69]
[1761931412830,5.59112598,185.05,185.01,0.69]
[1761931413029,5.59112598,185.02,184.94,0.69]
[1761931413349,5.59112598,184.99,184.95,0.69]
[1761931413530,5.59112598,184.97,184.95,0.69]
[1761931413729,5.59112598,184.98,184.95,0.69]
[1761931414157,5.59112598,184.97,184.95,0.69]
[1761931414368,5.59112598,184.98,184.95,0.69]
[1761931415036,5.59112598,184.99,184.95,6.09660405]
[1761931415442,5.59112598,184.99,184.95,0.69]
[1761931415645,5.59112598,184.99,184.96,0.69]
[1761931415952,5.59112598,184.98,184.96,0.69]
[1761931416157,5.59112598,184.98,184.93,11.68852519]
[1761931416463,5.59112598,184.98,184.94,0.69]
[1761931416641,5.59112598,184.95,184.9,0.69]
[1761931416833,5.59112598,184.93,184.9,0.69]
[1761931417039,5.59112598,184.94,184.9,6.09828472]
[1761931417234,5.59112598,184.93,184.9,0.69]
[1761931417574,5.59112598,184.94,184.9,0.69]
[1761931418547,5.59112598,184.93,184.88,11.69001323]
[1761931419066,26.18312598,184.94,184.89,11.68960272]
[1761931419468,26.18312598,184.97,184.92,5.59112598]
[1761931419678,20.592,184.95,184.93,0.69]
[1761931420276,5.59112598,184.98,184.93,6.28112598]
[1761931420782,5.59112598,184.98,184.94,0.69]
[1761931421885,5.59112598,184.98,184.94,62.49]
[1761931422073,5.59112598,184.98,184.9,0.69]
[1761931422074,5.59112598,184.95,184.9,0.69]
[1761931422272,20.592,184.96,184.9,62.49]
[1761931422577,5.59112598,184.95,184.9,62.49]
[1761931423195,5.59112598,184.95,184.91,0.69]
[1761931423898,20.592,184.98,184.93,5.59112598]
[1761931424252,20.592,184.98,184.94,0.69]
[1761931424453,20.592,184.98,184.93,68.08112598]
[1761931424679,20.592,184.98,184.93,67.39112598]
[1761931424861,20.592,184.98,184.94,11.6882398]
[1761931425258,20.592,184.98,184.95,0.69]
[1761931425463,5.73328755,185.01,184.96,5.59112598]
[1761931425770,5.59112598,185.0,184.95,5.59112598]
[1761931426156,5.59112598,185.0,184.95,6.28112598]
[1761931426759,5.59112598,184.99,184.95,0.69]
[1761931427281,5.59112598,185.0,184.95,0.69]
[1761931427559,5.95756529,185.01,184.95,0.69]
[1761931427770,5.59112598,185.0,184.95,0.69]
[1761931428168,5.59112598,184.99,184.95,0.69]
[1761931428567,5.59112598,184.98,184.94,61.8]
[1761931428768,5.59112598,184.97,184.94,61.8]
[1761931429282,20.592,184.92,184.87,0.69]
[1761931429483,5.59112598,184.9,184.87,0.69]
[1761931429785,5.59112598,184.9,184.84,26.87312598]
[1761931429992,5.59112598,184.9,184.85,0.69]
[1761931430487,0.14216157,184.93,184.86,5.59112598]
[1761931430691,0.14216157,184.93,184.87,5.59112598]
[1761931430873,5.59112598,184.92,184.87,11.00016021]
[1761931431074,5.59112598,184.92,184.87,5.59112598]
[1761931431397,5.59112598,184.91,184.88,0.69]
[1761931431588,0.14216157,184.93,184.88,0.69]
[1761931431589,5.59112598,184.92,184.88,0.69]
[1761931431759,9.93098926,184.97,184.88,6.28112598]
[1761931432078,5.59112598,184.94,184.89,6.28112598]
[1761931432466,5.59112598,184.95,184.9,6.28112598]
[1761931432686,20.73416157,184.96,184.9,6.28112598]
[1761931432981,5.59112598,184.94,184.9,0.69]
[1761931433874,5.59112598,184.94,184.9,6.0982751]
[1761931434261,5.59112598,184.94,184.91,0.69]
[1761931434456,20.592,184.96,184.91,0.69]
[1761931434662,5.59112598,184.95,184.91,0.69]
[1761931434862,20.592,184.96,184.92,5.59112598]
[1761931435086,20.592,184.96,184.93,5.59112598]
[1761931435387,20.592,184.96,184.93,0.65]
[1761931435797,20.592,184.96,184.91,62.45]
[1761931435986,20.592,184.96,184.91,68.04112598]
[1761931436289,26.18312598,184.96,184.92,0.65]
[1761931436694,5.59112598,184.93,184.91,61.8]
[1761931436916,0.41,184.95,184.91,61.8]
[1761931436917,5.59112598,184.92,184.91,61.8]
[1761931437075,5.59112598,184.92,184.9,20.1]
[1761931437470,5.59112598,184.93,184.9,20.1]
[1761931437690,5.59112598,184.94,184.9,20.75]
[1761931438474,20.592,184.96,184.91,6.24112598]
[1761931438907,20.592,184.96,184.92,0.65]
[1761931439112,0.41,185.0,184.92,6.05773545]
[1761931439412,5.59112598,184.96,184.91,10.99908986]
[1761931439611,5.59112598,184.95,184.9,31.74939]
[1761931439811,5.59112598,184.96,184.91,6.24112598]
[1761931440174,5.59112598,184.95,184.91,0.65]
[1761931440489,5.59112598,184.96,184.91,6.24112598]
[1761931440676,5.59112598,184.95,184.91,0.65]
[1761931441005,0.28432314,184.97,184.91,0.65]
[1761931441006,5.59112598,184.96,184.91,11.64903291]
[1761931441201,0.28432314,184.97,184.93,5.59112598]
[1761931441381,0.28432314,184.97,184.92,0.65]
[1761931441382,0.28432314,184.97,184.92,5.59112598]
[1761931441578,20.592,184.98,184.94,5.59112598]
[1761931441898,26.18312598,184.98,184.93,6.24112598]
[1761931442119,20.592,184.98,184.93,6.24112598]
[1761931442335,13.51134266,185.03,184.94,0.65]
[1761931442336,0.41,185.03,184.94,0.65]
[1761931442974,20.592,185.01,184.95,5.40686672]
[1761931443174,26.18312598,185.01,184.96,5.59112598]
[1761931443402,26.18312598,185.01,184.95,5.59112598]
[1761931443609,26.18312598,185.01,184.95,6.24112598]
[1761931443784,26.18312598,185.01,184.96,5.59112598]
[1761931444187,26.18312598,185.01,184.96,6.24112598]
[1761931444393,5.59112598,185.0,184.95,67.39112598]
[1761931444599,5.59112598,185.0,184.95,68.04112598]
[1761931444801,5.59112598,185.0,184.96,0.65]
[1761931445009,5.59112598,185.0,184.96,6.05655777]
[1761931445301,9.78882769,185.03,184.97,5.59112598]
[1761931445505,5.87544912,185.02,184.97,5.59112598]
[1761931446009,5.59112598,185.01,184.96,10.99766014]
[1761931446196,5.59112598,185.01,184.96,11.64766014]
[1761931446385,5.59112598,185.01,184.97,0.65]
[1761931446586,0.28432314,185.02,184.97,0.65]
[1761931446891,5.59112598,185.01,184.97,0.65]
[1761931447303,0.28432314,185.02,184.97,0.65]
[1761931447480,5.59112598,185.01,184.97,6.05621401]
[1761931447677,26.18312598,185.03,184.98,5.59112598]
[1761931448185,26.18312598,185.03,184.98,6.24112598]
[1761931449213,26.18312598,185.03,184.98,5.59112598]
[1761931449510,26.18312598,185.03,184.99,0.65]
[1761931450225,20.592,185.03,185.0,5.59112598]
[1761931450381,20.592,185.03,184.99,0.65]
[1761931450382,0.2,185.06,185.01,5.59112598]
[1761931450585,0.2,185.06,185.02,5.59112598]
[1761931450784,20.792,185.06,185.02,67.39112598]
[1761931450988,26.38312598,185.06,185.02,61.8]
[1761931451186,26.38312598,185.06,185.02,62.45]
[1761931451497,5.59112598,185.03,185.02,61.8]
[1761931451698,20.592,185.05,185.02,62.45]
[1761931451903,0.2,185.06,185.03,0.65]
[1761931452232,0.2,185.06,185.03,6.24112598]
[1761931452428,0.2,185.06,185.04,0.65]
[1761931452732,0.2,185.06,185.05,5.59112598]
[1761931452890,0.2,185.06,185.05,6.24112598]
[1761931453493,0.2,185.06,185.05,11.64507085]
[1761931454691,0.2,185.06,185.05,0.65]
[1761931454915,0.2,185.06,185.05,6.24112598]
[1761931455299,0.2,185.06,185.05,11.64507085]
[1761931456797,0.2,185.06,185.05,73.44507085]
[1761931457938,0.2,185.06,185.05,67.85394487]
[1761931458238,0.2,185.06,185.05,73.44507085]
[1761931459102,0.2,185.06,185.04,5.40418788]
[1761931459305,0.2,185.06,185.02,75.31205275]
[1761931459306,0.2,185.06,185.03,8.47898936]
[1761931459648,8.47898936,185.04,184.97,8.47898936]
[1761931459851,8.47898936,185.02,184.96,8.47898936]
[1761931460026,8.47898936,185.02,184.97,8.47898936]
[1761931460211,0.2,185.06,185.01,8.47898936]
[1761931460408,0.2,185.06,185.02,8.47898936]
[1761931460610,8.67898936,185.06,185.0,8.47898936]
[1761931461032,8.67898936,185.06,185.0,9.12898936]
[1761931461203,8.67898936,185.06,185.0,0.65]
[1761931461408,8.47898936,185.05,185.0,0.65]
[1761931461926,8.47898936,185.02,184.97,6.12628209]
[1761931462433,8.47898936,185.02,184.98,0.72]
[1761931463012,8.47898936,185.03,184.98,0.72]
[1761931463241,8.47898936,185.02,184.98,0.72]
[1761931464036,8.47898936,185.02,184.98,6.12584605]
[1761931464340,8.47898936,185.02,184.98,0.72]
[1761931464634,8.47898936,185.0,184.94,0.72]
[1761931464839,8.47898936,184.99,184.94,0.72]
[1761931465211,0.61,185.06,184.97,8.47898936]
[1761931465408,20.592,185.04,184.99,8.47898936]
[1761931465623,0.61,185.06,185.01,8.47898936]
[1761931465624,0.2,185.06,185.01,8.47898936]
[1761931466042,8.67898936,185.06,185.0,9.17898936]
[1761931466530,8.67898936,185.06,185.0,8.47898936]
[1761931466733,0.2,185.06,185.03,8.47898936]
[1761931467116,8.67898936,185.06,185.01,8.47898936]
[1761931467314,8.47898936,185.05,185.0,67.20512336]
[1761931467513,8.47898936,185.03,184.98,0.7]
[1761931467918,0.41,185.05,184.98,9.17898936]
[1761931467919,8.47898936,185.04,184.98,9.17898936]
[1761931468325,8.47898936,185.04,184.99,0.7]
[1761931468846,8.47898936,185.03,184.98,0.7]
[1761931469139,21.002,185.05,185.0,5.4054054]
[1761931469140,20.592,185.05,185.0,5.4054054]
[1761931469537,29.07098936,185.05,185.0,6.1054054]
[1761931469723,29.07098936,185.05,185.0,5.4054054]
[1761931469926,0.2,185.06,185.01,0.7]
[1761931470134,8.67898936,185.06,185.01,0.7]
[1761931470341,0.2,185.06,185.01,9.17898936]
[1761931470552,0.2,185.06,185.02,8.47898936]
[1761931470747,8.47898936,185.05,185.0,67.2054054]
[1761931470923,8.47898936,185.05,185.0,67.9054054]
[1761931471121,8.67898936,185.06,185.01,0.7]
[1761931471627,29.27098936,185.06,185.01,6.10506431]
[1761931471832,0.2,185.06,185.03,8.47898936]
[1761931472219,0.2,185.06,185.04,0.7]
[1761931472420,0.2,185.06,185.05,8.47898936]
[1761931472838,0.2,185.06,185.05,9.17898936]
[1761931473241,0.2,185.06,185.05,14.58293423]
[1761931474626,0.2,185.06,185.05,76.38293423]
[1761931480127,1e-08,185.06,185.05,76.38293423]
[1761931481146,0.2,185.1,185.06,0.28432314]
[1761931481333,0.2,185.12,185.09,29.07098936]
[1761931481658,0.2,185.12,185.11,8.47898936]
[1761931481858,0.2,185.12,185.11,13.88118265]
[1761931482063,0.2,185.12,185.11,14.58118265]
[1761931482565,1e-08,185.12,185.11,23.06017201]
[1761931482737,0.2,185.2,185.15,20.592]
[1761931483061,0.2,185.2,185.19,8.47898936]
[1761931483456,0.2,185.2,185.19,9.17898936]
[1761931483642,0.2,185.25,185.24,8.47898936]
[1761931483842,0.2,185.25,185.22,8.47898936]
[1761931484043,0.2,185.25,185.23,8.47898936]
[1761931484252,0.2,185.25,185.2,0.7]
[1761931484639,0.2,185.25,185.23,8.47898936]
[1761931484953,0.2,185.25,185.24,8.47898936]
[1761931485157,0.2,185.25,185.24,9.17898936]
[1761931485859,0.2,185.25,185.24,14.57739143]
[1761931486043,0.2,185.25,185.24,8.47898936]
[1761931486357,0.2,185.25,185.23,13.8776454]
[1761931486532,0.2,185.25,185.24,9.17898936]
[1761931487142,0.2,185.25,185.24,0.7]
[1761931487366,0.2,185.25,185.24,9.17898936]
[1761931487737,0.2,185.25,185.24,14.57739143]
[1761931488153,0.2,185.28,185.24,37.8622243]
[1761931488439,0.2,185.28,185.27,8.47898936]
[1761931488771,0.2,185.28,185.27,9.17898936]
[1761931489847,0.2,185.28,185.27,14.57651729]
[1761931490645,0.2,185.28,185.27,24.36534498]
[1761931491258,0.2,185.28,185.27,6.09752793]
[1761931491564,0.2,185.28,185.27,14.57651729]
[1761931491938,0.2,185.28,185.27,24.36534498]
[1761931492652,1e-08,185.28,185.27,44.95734498]
[1761931492850,1e-08,185.28,185.27,45.24166812]
[1761931495340,1e-08,185.28,185.27,24.64966812]
[1761931495754,1e-08,185.28,185.27,45.24166812]
[1761931495969,1e-08,185.28,185.27,24.64966812]
[1761931496147,1e-08,185.28,185.27,45.24166812]
[1761931496468,9.17898936,185.43,185.31,9.78882769]
[1761931496785,8.47898936,185.42,185.36,8.47898936]
[1761931497149,9.17898936,185.41,185.35,8.47898936]
[1761931497655,8.47898936,185.41,185.35,13.87397019]
[1761931497875,0.7,185.4,185.33,8.47898936]
[1761931498181,9.17898936,185.4,185.34,8.47898936]
[1761931498538,9.17898936,185.39,185.33,8.47898936]
[1761931499243,8.47898936,185.35,185.29,5.39667363]
[1761931499552,8.47898936,185.36,185.3,8.47898936]
[1761931499780,9.17898936,185.37,185.31,13.87535221]
[1761931499943,0.7,185.37,185.31,13.87535221]
[1761931500251,0.7,185.36,185.31,13.87535221]
[1761931500460,8.47898936,185.37,185.32,8.47898936]
[1761931500759,9.17898936,185.37,185.32,8.47898936]
[1761931500953,0.7,185.36,185.32,8.47898936]
[1761931501164,8.47898936,185.37,185.32,8.47898936]
[1761931501165,0.7,185.39,185.33,8.47898936]
[1761931501471,9.17898936,185.38,185.32,9.14898936]
[1761931501676,9.17898936,185.38,185.33,5.39578049]
[1761931502186,26.26980077,185.41,185.33,13.87476985]
[1761931502187,0.7,185.37,185.33,13.87476985]
[1761931502401,5.67780077,185.41,185.34,8.47898936]
[1761931502402,0.7,185.41,185.34,8.47898936]
[1761931502566,0.7,185.43,185.37,8.47898936]
[1761931502751,9.17898936,185.43,185.37,8.47898936]
[1761931503251,0.7,185.43,185.38,8.47898936]
[1761931503771,8.47898936,185.41,185.33,14.15945124]
[1761931503986,6.09289322,185.43,185.3,0.28432314]
[1761931503987,8.47898936,185.37,185.3,0.67]
[1761931504145,8.47898936,185.37,185.31,13.87507851]
[1761931504673,20.592,185.42,185.3,75.67557648]
[1761931504674,9.17898936,185.36,185.3,75.67557648]
[1761931504889,0.7,185.36,185.31,8.47898936]
[1761931505045,9.17898936,185.38,185.31,8.47898936]
[1761931505249,8.47898936,185.37,185.31,8.47898936]
[1761931505462,9.17898936,185.38,185.32,8.47898936]
[1761931505674,9.17898936,185.38,185.33,5.39578049]
[1761931506071,0.7,185.37,185.33,5.39578049]
[1761931506281,8.47898936,185.38,185.33,5.39578049]
[1761931506582,0.7,185.37,185.33,5.39578049]
[1761931506763,8.47898936,185.34,185.27,83.062]
[1761931506967,0.7,185.37,185.27,83.062]
[1761931506968,8.47898936,185.32,185.27,83.062]
[1761931507165,8.47898936,185.32,185.27,21.262]
[1761931507378,9.17898936,185.32,185.27,21.262]
[1761931507685,9.17898936,185.31,185.25,5.3980517]
[1761931508276,9.17898936,185.31,185.25,8.47898936]
[1761931508277,8.47898936,185.31,185.25,8.47898936]
[1761931508488,8.47898936,185.31,185.24,5.39834207]
[1761931508489,8.47898936,185.34,185.28,8.47898936]
[1761931508664,8.47898936,185.32,185.26,8.47898936]
[1761931508849,0.7,185.33,185.25,8.47898936]
[1761931509173,19.1665809,185.36,185.24,5.39834207]
[1761931509174,0.7,185.32,185.24,5.39834207]
[1761931509378,8.47898936,185.3,185.24,13.87733143]
[1761931509584,0.7,185.32,185.25,9.14898936]
[1761931509789,9.17898936,185.32,185.26,13.87680864]
[1761931509958,8.47898936,185.34,185.28,8.47898936]
[1761931510389,0.7,185.35,185.29,8.47898936]
[1761931510565,0.7,185.37,185.32,8.47898936]
[1761931510757,9.17898936,185.37,185.31,8.47898936]
[1761931510958,9.17898936,185.37,185.3,0.67]
[1761931511153,8.47898936,185.34,185.26,39.48436748]
[1761931511387,8.47898936,185.34,185.26,40.15436748]
[1761931511561,19.46278388,185.35,185.28,8.47898936]
[1761931511760,19.46278388,185.35,185.29,5.39694532]
[1761931512290,8.47898936,185.34,185.29,5.39694532]
[1761931512453,8.47898936,185.34,185.26,21.262]
[1761931512454,8.47898936,185.33,185.26,34.75654045]
[1761931512659,8.47898936,185.32,185.27,5.39747099]
[1761931512964,0.7,185.31,185.27,5.39747099]
[1761931513174,9.17898936,185.31,185.27,5.39747099]
[1761931513499,8.47898936,185.28,185.23,8.96024849]
[1761931513661,8.47898936,185.29,185.23,22.83792271]
[1761931516085,0.7,185.27,185.23,8.96024849]
[1761931516403,9.17898936,185.3,185.24,8.47898936]
[1761931516606,8.47898936,185.26,185.23,8.96024849]
[1761931516780,8.47898936,185.27,185.23,8.96024849]
[1761931517310,8.47898936,185.25,185.23,8.96024849]
[1761931517471,0.7,185.26,185.23,8.96024849]
[1761931517670,8.47898936,185.24,185.23,8.96024849]
[1761931518058,9.17898936,185.24,185.23,8.96024849]
[1761931518602,8.47898936,185.25,185.23,8.96024849]
[1761931519197,10.48882769,185.3,185.24,9.14898936]
[1761931519400,5.56756002,185.28,185.23,8.96024849]
[1761931519690,5.56756002,185.27,185.23,8.96024849]
[1761931519904,5.56756002,185.27,185.23,14.35893346]
[1761931520188,6.26756002,185.26,185.23,8.96024849]
[1761931520492,0.7,185.26,185.23,70.76024849]
[1761931520686,5.56756002,185.25,185.23,70.76024849]
[1761931521077,20.592,185.28,185.23,70.76024849]
[1761931521078,6.26756002,185.27,185.23,70.76024849]
[1761931521276,5.56756002,185.25,185.23,70.76024849]
[1761931521482,15.64071085,185.24,185.23,8.96024849]
[1761931521785,36.23271085,185.24,185.23,8.96024849]
[1761931521983,0.7,185.27,185.23,8.96024849]
[1761931521984,0.7,185.26,185.23,8.96024849]
[1761931522313,20.592,185.25,185.23,8.96024849]
[1761931522811,5.56756002,185.27,185.23,8.96024849]
[1761931523009,0.7,185.26,185.23,8.96024849]
[1761931523213,6.26756002,185.26,185.23,8.96024849]
[1761931523511,20.592,185.28,185.23,19.92647081]
[1761931523798,0.67,185.27,185.23,8.96024849]
[1761931523984,6.23756002,185.27,185.23,8.96024849]
[1761931524173,6.23756002,185.27,185.23,14.35888643]
[1761931524174,5.56756002,185.27,185.23,14.35888643]
[1761931524579,0.67,185.33,185.26,5.56756002]
[1761931524781,15.35638771,185.32,185.26,5.56756002]
[1761931524978,5.56756002,185.28,185.23,70.76024849]
[1761931525177,6.21756002,185.27,185.23,8.96024849]
[1761931525395,6.21756002,185.27,185.23,14.35887026]
[1761931525696,0.65,185.27,185.23,14.35887026]
[1761931525865,5.56756002,185.28,185.23,14.35887026]
[1761931526064,6.21756002,185.28,185.23,14.35887026]
[1761931526297,0.65,185.28,185.23,14.35887026]
[1761931526477,9.78882769,185.32,185.26,5.56756002]
[1761931526478,30.38082769,185.32,185.26,5.56756002]
[1761931526684,6.21756002,185.31,185.26,67.36756002]
[1761931526870,6.21756002,185.31,185.26,61.8]
[1761931527283,20.592,185.32,185.28,5.56756002]
[1761931527591,10.28379452,185.35,185.31,5.56756002]
[1761931527777,10.28379452,185.35,185.33,5.56756002]
[1761931527976,10.28379452,185.35,185.29,0.67]
[1761931528184,10.28379452,185.35,185.32,10.96355401]
[1761931528373,10.28379452,185.35,185.33,5.56756002]
[1761931528576,10.28379452,185.35,185.34,5.56756002]
[1761931528774,10.28379452,185.35,185.34,6.23756002]
[1761931530202,10.28379452,185.35,185.34,11.63304939]
[1761931531394,26.15956002,185.45,185.34,25.12177281]
[1761931531600,6.21756002,185.46,185.4,5.56756002]